bitfinex-derivatives/quotes_SOLF0:USTF0_20241222
["timestamp","ask_amount","ask_price","bid_price","bid_amount"]
[1734902713360,20.83459745,182.22,182.1,2.96]
[1734902713556,20.83459745,182.19,182.07,88.32501546]
[1734902713762,1.6811,182.18,182.06,91.54491546]
[1734902713958,2.7479,182.14,182.1,2.7483]
[1734902714162,1.6811,182.18,182.06,91.54491546]
[1734902714463,1.6811,182.18,182.06,3.2199]
[1734902714865,1.6811,182.18,182.1,2.7483]
[1734902715668,2.7477,182.15,182.1,2.7483]
[1734902716065,2.7477,182.15,182.11,2.7482]
[1734902718163,1.6464,182.24,182.07,20.83459745]
[1734902718367,2.96,182.2,182.1,20.83459745]
[1734902718566,2.96,182.2,182.11,2.96]
[1734902718873,2.7472,182.19,182.11,2.96]
[1734902719466,2.7472,182.19,182.15,2.7477]
[1734902720267,2.7472,182.19,182.11,2.96]
[1734902720471,2.7469,182.21,182.11,2.96]
[1734902720675,2.7469,182.21,182.13,20.83459745]
[1734902721271,4.4073,182.23,182.18,2.7471]
[1734902721476,1.6607,182.23,182.18,2.7471]
[1734902722078,1.6607,182.23,182.11,2.96]
[1734902722677,2.7468,182.21,182.11,2.96]
[1734902723181,1.6607,182.23,182.18,2.7472]
[1734902723383,2.7466,182.22,182.18,2.7472]
[1734902723882,2.7466,182.22,182.19,2.7471]
[1734902725580,2.7466,182.22,182.11,2.96]
[1734902725581,1.6464,182.24,182.21,2.7466]
[1734902725784,2.96,182.27,182.21,2.7466]
[1734902726284,2.7461,182.26,182.22,2.7465]
[1734902726686,5.063,182.33,182.21,2.96]
[1734902726877,8.023,182.33,182.21,2.96]
[1734902727479,3.4003,182.33,182.22,20.83459745]
[1734902727689,3.3241,182.39,182.25,20.83459745]
[1734902727890,3.3241,182.39,182.28,20.83459745]
[1734902728086,2.7444,182.38,182.28,20.83459745]
[1734902728384,3.3241,182.39,182.28,20.83459745]
[1734902729484,2.7444,182.37,182.28,20.83459745]
[1734902729685,3.3241,182.39,182.28,20.83459745]
[1734902730483,3.3241,182.39,182.25,20.83459745]
[1734902730684,3.3241,182.39,182.26,2.96]
[1734902731593,2.7442,182.38,182.26,2.96]
[1734902731789,3.3241,182.39,182.26,2.96]
[1734902731983,2.7445,182.36,182.31,2.7451]
[1734902732292,2.7445,182.36,182.26,2.96]
[1734902733398,2.7445,182.36,182.32,2.7451]
[1734902733688,3.3241,182.39,182.32,2.7451]
[1734902733893,3.3241,182.39,182.26,2.96]
[1734902734093,3.3241,182.39,182.32,2.745]
[1734902735382,2.7445,182.37,182.32,2.745]
[1734902735984,2.7447,182.35,182.26,2.96]
[1734902736189,3.3241,182.39,182.26,2.96]
[1734902736782,2.745,182.34,182.29,2.7455]
[1734902736992,2.745,182.34,182.26,2.96]
[1734902737385,2.745,182.34,182.29,2.7455]
[1734902737588,2.96,182.35,182.26,2.96]
[1734902738192,5.7048,182.35,182.31,2.7453]
[1734902738796,6.2841,182.39,182.28,20.83459745]
[1734902738989,2.96,182.43,182.31,20.83459745]
[1734902739189,2.96,182.43,182.32,2.96]
[1734902740391,2.744,182.4,182.36,2.7444]
[1734902742298,2.96,182.43,182.34,2.7448]
[1734902742493,2.96,182.43,182.32,2.96]
[1734902742996,2.744,182.4,182.35,2.7447]
[1734902743794,2.96,182.43,182.35,2.7447]
[1734902743987,2.96,182.43,182.33,2.7449]
[1734902744187,2.96,182.43,182.32,2.96]
[1734902744796,20.83459745,182.41,182.28,23.79459745]
[1734902744999,3.3191,182.4,182.27,2.96]
[1734902745197,2.7447,182.36,182.32,2.7451]
[1734902746899,2.745,182.34,182.3,2.7454]
[1734902747094,2.745,182.34,182.27,2.96]
[1734902747399,2.96,182.37,182.27,2.96]
[1734902747898,2.7451,182.33,182.27,2.96]
[1734902748289,2.96,182.37,182.27,2.96]
[1734902748497,2.96,182.37,182.24,20.83459745]
[1734902748996,2.7453,182.32,182.28,2.7457]
[1734902749194,2.96,182.37,182.28,2.7457]
[1734902750601,2.7453,182.31,182.28,2.7457]
[1734902752100,2.96,182.37,182.24,20.83459745]
[1734902752701,2.7446,182.36,182.32,2.7451]
[1734902753198,2.96,182.37,182.24,20.83459745]
[1734902753603,2.96,182.37,182.31,2.7453]
[1734902753999,2.7448,182.35,182.31,2.7453]
[1734902754505,2.7448,182.35,182.27,2.7459]
[1734902754798,2.7448,182.35,182.24,20.83459745]
[1734902756004,2.7448,182.35,182.31,2.7452]
[1734902756799,1.7303,182.39,182.36,2.7445]
[1734902757007,1.5889,182.4,182.31,2.96]
[1734902757400,1.5889,182.4,182.38,2.7442]
[1734902757605,2.96,182.43,182.38,2.7442]
[1734902758405,2.7433,182.45,182.41,2.7438]
[1734902759408,2.7437,182.43,182.39,2.744]
[1734902760604,2.7434,182.45,182.41,2.7437]
[1734902761502,4.359,182.46,182.42,2.7437]
[1734902761702,1.6159,182.46,182.36,23.79459745]
[1734902762006,1.6159,182.46,182.42,2.7436]
[1734902762604,1.6159,182.46,182.37,2.7444]
[1734902762811,1.6159,182.46,182.34,2.96]
[1734902763107,2.7441,182.4,182.34,2.96]
[1734902763408,2.96,182.42,182.34,2.96]
[1734902764310,2.744,182.41,182.34,2.96]
[1734902765310,2.96,182.43,182.34,2.96]
[1734902765505,2.7437,182.42,182.34,2.96]
[1734902766406,2.7437,182.42,182.38,2.7442]
[1734902768412,5.7036,182.43,182.39,2.7441]
[1734902771809,2.96,182.43,182.34,2.96]
[1734902772009,2.7441,182.4,182.36,2.7446]
[1734902772510,2.96,182.43,182.31,3.34445089]
[1734902772709,20.83459745,182.38,182.21,113.39649625]
[1734902772908,2.7458,182.29,182.24,91.07141546]
[1734902773102,2.96,182.32,182.23,88.32501546]
[1734902773300,23.79459745,182.32,182.23,88.32501546]
[1734902773500,2.7461,182.27,182.23,88.32501546]
[1734902773706,20.83459745,182.32,182.23,88.32501546]
[1734902774007,2.7464,182.24,182.23,88.32501546]
[1734902774506,25.37989745,182.25,182.12,83.08301546]
[1734902774710,2.747,182.21,182.15,2.7476]
[1734902775210,25.37989745,182.25,182.12,83.08301546]
[1734902775211,20.83459745,182.22,182.12,83.08301546]
[1734902775606,20.83459745,182.22,182.11,2.7482]
[1734902776112,20.83459745,182.22,182.09,3.0054]
[1734902776312,20.83459745,182.19,182.09,0.2569]
[1734902776505,23.79459745,182.19,182.09,0.2569]
[1734902777113,23.79459745,182.19,182.09,2.7485]
[1734902777312,23.79459745,182.19,182.08,2.96]
[1734902777517,2.7475,182.17,182.11,2.7483]
[1734902777811,23.79459745,182.19,182.11,2.7483]
[1734902778410,2.7476,182.16,182.1,2.7485]
[1734902779811,23.79459745,182.19,182.08,2.96]
[1734902780014,23.79459745,182.22,182.08,23.79459745]
[1734902780312,2.7469,182.2,182.15,2.7475]
[1734902780511,2.96,182.23,182.13,2.96]
[1734902781214,20.83459745,182.22,182.13,2.96]
[1734902781416,20.83459745,182.22,182.09,2.96]
[1734902781717,2.7474,182.17,182.11,2.7481]
[1734902782818,2.7471,182.19,182.14,2.7478]
[1734902783209,20.83459745,182.22,182.09,2.96]
[1734902783418,2.7469,182.2,182.12,2.7479]
[1734902783717,20.83459745,182.22,182.09,2.96]
[1734902783915,22.41989745,182.25,182.18,2.7472]
[1734902784216,1.5853,182.25,182.16,2.96]
[1734902784417,2.96,182.28,182.17,23.79459745]
[1734902784615,2.96,182.28,182.18,2.96]
[1734902785014,2.7462,182.25,182.19,2.7469]
[1734902785213,2.7462,182.25,182.18,2.96]
[1734902786115,2.7463,182.24,182.19,2.747]
[1734902786916,2.7463,182.24,182.2,2.7469]
[1734902787116,2.7463,182.24,182.18,2.96]
[1734902789116,2.96,182.28,182.15,1.6272]
[1734902789316,22.56759745,182.27,182.13,2.96]
[1734902789615,20.83459745,182.24,182.11,2.7483]
[1734902789820,4.5694,182.23,182.11,2.7483]
[1734902790021,4.5694,182.23,182.1,2.96]
[1734902790223,20.83459745,182.21,182.1,2.96]
[1734902790417,2.7482,182.13,182.07,3.34872295]
[1734902791323,2.7482,182.12,182.07,3.34872295]
[1734902791526,2.96,182.16,182.07,3.34872295]
[1734902791917,2.96,182.16,182.07,6.09762295]
[1734902792120,20.83459745,182.12,181.97,2.96]
[1734902792425,2.7493,182.05,182.0,2.7499]
[1734902793328,2.7491,182.07,181.97,2.96]
[1734902793540,6.364,182.11,181.99,20.83459745]
[1734902794027,2.7486,182.09,182.04,2.7494]
[1734902795433,1.6755,182.11,182.02,2.96]
[1734902796027,1.6755,182.11,182.06,2.7489]
[1734902796532,4.4239,182.11,182.06,2.7489]
[1734902796730,20.83459745,182.18,182.02,23.79459745]
[1734902796930,2.96,182.17,182.05,20.83459745]
[1734902797633,2.7476,182.17,182.05,20.83459745]
[1734902797831,2.96,182.18,182.05,20.83459745]
[1734902798233,2.7478,182.15,182.05,33.9008871]
[1734902798535,2.96,182.18,182.05,33.9008871]
[1734902799531,2.7477,182.16,182.12,2.7482]
[1734902799731,1.6277,182.22,182.09,2.96]
[1734902799934,2.96,182.21,182.09,2.96]
[1734902800532,2.7471,182.2,182.15,2.7477]
[1734902800731,2.96,182.21,182.09,2.96]
[1734902801830,2.7472,182.2,182.15,2.7478]
[1734902802037,2.96,182.21,182.09,2.96]
[1734902802231,33.9008871,182.19,182.07,2.96]
[1734902802432,2.7477,182.16,182.11,2.7484]
[1734902802648,2.7477,182.16,182.07,2.96]
[1734902802935,2.7475,182.17,182.07,2.96]
[1734902803435,33.9008871,182.19,182.07,2.96]
[1734902803628,2.7474,182.18,182.07,2.96]
[1734902804536,2.7474,182.18,182.13,2.7479]
[1734902804836,2.96,182.21,182.07,2.96]
[1734902805035,2.96,182.21,182.12,2.7481]
[1734902805237,2.96,182.21,182.07,2.96]
[1734902805737,2.96,182.21,182.12,2.7481]
[1734902805944,2.7474,182.18,182.07,2.96]
[1734902806930,2.7471,182.19,182.07,2.96]
[1734902807133,2.7471,182.19,182.14,2.7478]
[1734902808634,2.7473,182.18,182.14,2.7479]
[1734902809243,2.96,182.21,182.13,2.748]
[1734902809244,2.7475,182.17,182.13,2.748]
[1734902809839,33.9008871,182.19,182.07,2.96]
[1734902810344,2.7479,182.15,182.11,2.7482]
[1734902810537,1.6277,182.22,182.07,2.96]
[1734902810739,2.94,182.21,182.07,2.96]
[1734902810943,2.7473,182.18,182.11,2.7483]
[1734902811143,2.7473,182.18,182.07,2.96]
[1734902812245,2.7473,182.18,182.14,2.7479]
[1734902812649,2.7472,182.19,182.07,2.96]
[1734902813444,2.94,182.21,182.07,2.96]
[1734902813642,2.7473,182.18,182.14,2.7478]
[1734902817348,1.6277,182.22,182.18,2.7472]
[1734902817945,2.7469,182.21,182.17,2.7474]
[1734902818638,4.3744,182.22,182.19,2.7471]
[1734902818840,1.6277,182.22,182.12,2.94]
[1734902819251,2.7473,182.18,182.15,2.7477]
[1734902819445,1.6277,182.22,182.12,2.94]
[1734902819650,1.6277,182.22,182.1,2.94]
[1734902819845,33.9008871,182.2,182.05,125.05378324]
[1734902820051,2.94,182.19,182.06,2.94]
[1734902820242,20.86756849,182.18,182.06,2.94]
[1734902820944,2.94,182.19,182.06,2.94]
[1734902821149,2.7472,182.19,182.15,2.7476]
[1734902821349,2.94,182.21,182.15,2.7476]
[1734902821751,2.7472,182.19,182.15,2.7476]
[1734902823447,5.687,182.21,182.11,2.94]
[1734902823872,5.687,182.21,182.17,2.7474]
[1734902824251,2.94,182.21,182.17,2.7474]
[1734902824457,2.94,182.21,182.16,2.7475]
[1734902824955,2.747,182.2,182.16,2.7475]
[1734902825453,2.94,182.21,182.11,2.94]
[1734902825645,5.6869,182.21,182.17,2.7473]
[1734902825852,2.94,182.21,182.17,2.7473]
[1734902826856,2.7471,182.2,182.17,2.7473]
[1734902827056,2.94,182.21,182.15,2.7477]
[1734902827755,2.94,182.21,182.11,2.94]
[1734902827951,1.6277,182.22,182.11,23.80756849]
[1734902828155,4.3744,182.22,182.19,2.7471]
[1734902829353,20.86756849,182.34,182.17,20.86756849]
[1734902829656,91.17250445,182.38,182.23,20.86756849]
[1734902829657,1.6847,182.33,182.23,20.86756849]
[1734902829856,1.6847,182.33,182.24,2.94]
[1734902830453,22.86271668,182.36,182.26,20.86756849]
[1734902830759,2.7455,182.3,182.24,5.6862]
[1734902830955,2.94,182.3,182.2,2.94]
[1734902831255,2.7461,182.26,182.22,2.7466]
[1734902831463,1.7,182.29,182.22,2.7466]
[1734902832460,2.746,182.27,182.22,2.7466]
[1734902833760,1.7,182.29,182.17,110.44994563]
[1734902833963,33.85916888,182.26,182.16,2.94]
[1734902834156,2.94,182.25,182.16,2.94]
[1734902834461,2.747,182.2,182.16,2.94]
[1734902835758,2.94,182.24,182.16,2.94]
[1734902836462,2.7466,182.23,182.18,2.747]
[1734902836660,2.94,182.27,182.16,2.94]
[1734902837362,2.7461,182.25,182.17,33.85916888]
[1734902837661,2.94,182.27,182.17,33.85916888]
[1734902838059,2.7461,182.26,182.2,2.7467]
[1734902838255,2.7461,182.26,182.17,33.85916888]
[1734902838462,5.6858,182.27,182.22,2.7465]
[1734902839167,2.94,182.27,182.22,2.7465]
[1734902839363,2.746,182.26,182.22,2.7465]
[1734902844165,2.7457,182.28,182.17,35.52396888]
[1734902844870,2.7457,182.28,182.23,2.7463]
[1734902845068,2.7457,182.28,182.17,35.52396888]
[1734902845468,2.7457,182.28,182.23,2.7463]
[1734902846969,1.7,182.29,182.21,2.94]
[1734902848268,1.7,182.29,182.26,2.7458]
[1734902848471,1.7,182.29,182.21,2.94]
[1734902848866,33.85916888,182.38,182.23,33.85916888]
[1734902849072,4.5232,182.37,182.23,33.85916888]
[1734902849376,2.7448,182.34,182.3,2.7453]
[1734902849578,4.5232,182.37,182.27,2.94]
[1734902849971,2.7447,182.35,182.3,2.7454]
[1734902850272,4.5232,182.37,182.3,2.7454]
[1734902850473,2.7446,182.35,182.31,2.7451]
[1734902850671,1.5832,182.37,182.31,2.7451]
[1734902851069,2.7446,182.36,182.31,2.7451]
[1734902851273,1.5832,182.37,182.31,2.7451]
[1734902852668,2.7447,182.35,182.31,2.7451]
[1734902854372,1.5832,182.37,182.27,2.94]
[1734902854672,2.94,182.36,182.27,2.94]
[1734902855174,2.745,182.33,182.29,2.7454]
[1734902855574,2.94,182.36,182.29,2.7454]
[1734902855772,2.94,182.36,182.27,2.7457]
[1734902855968,20.81834675,182.34,182.21,2.94]
[1734902856168,20.81834675,182.34,182.19,20.81834675]
[1734902856373,20.81834675,182.31,182.18,2.94]
[1734902856574,7.872,182.3,182.18,2.94]
[1734902857671,2.7466,182.23,182.18,2.7471]
[1734902857877,2.94,182.24,182.15,2.94]
[1734902858076,2.94,182.24,182.12,1.6319]
[1734902858280,2.7473,182.18,182.13,2.7479]
[1734902859585,1.6675,182.21,182.1,4.5567]
[1734902859777,2.7472,182.18,182.13,2.7479]
[1734902860179,2.7473,182.17,182.12,2.7481]
[1734902860486,1.6675,182.21,182.1,36.82488791]
[1734902861783,2.747,182.19,182.14,2.7476]
[1734902862481,2.747,182.19,182.1,36.82488791]
[1734902862685,1.6675,182.21,182.1,36.82488791]
[1734902863284,1.6675,182.21,182.17,2.7473]
[1734902863884,4.4143,182.21,182.17,2.7473]
[1734902866285,1.6675,182.21,182.17,2.7473]
[1734902867587,4.4143,182.21,182.17,2.7473]
[1734902867888,33.88488791,182.18,182.06,87.80370878]
[1734902868094,33.88488791,182.14,182.05,87.80370878]
[1734902868286,2.7485,182.1,182.05,90.55280878]
[1734902868888,1.5999,182.13,182.05,87.80370878]
[1734902868889,4.5399,182.13,182.05,87.80370878]
[1734902869082,4.5399,182.13,182.01,33.88488791]
[1734902869083,4.5399,182.13,182.03,2.94]
[1734902869594,2.7481,182.12,182.08,2.7487]
[1734902871388,4.5399,182.13,182.03,2.94]
[1734902871587,4.5399,182.13,182.02,1.6272]
[1734902872489,2.7487,182.09,182.05,2.7491]
[1734902874191,6.1872,182.13,181.98,37.22918791]
[1734902874392,2.7487,182.08,182.03,2.7494]
[1734902874694,1.6616,182.12,182.03,2.7494]
[1734902875196,2.7489,182.07,182.03,2.7494]
[1734902875694,1.6616,182.12,181.98,40.16918791]
[1734902875898,2.7492,182.05,182.01,2.7497]
[1734902876290,2.7495,182.03,181.98,2.7501]
[1734902876490,2.94,182.07,181.92,1.67]
[1734902876694,33.88488791,182.05,181.91,36.82488791]
[1734902876998,5.0688,182.04,181.91,2.94]
[1734902877790,5.0688,182.04,181.98,2.7502]
[1734902877997,2.94,182.05,181.92,33.88488791]
[1734902878193,2.94,182.05,181.93,3.2833]
[1734902878388,2.94,182.05,182.0,2.7498]
[1734902878593,2.94,182.05,181.94,1.7291]
[1734902879102,2.94,182.06,181.94,1.7291]
[1734902879396,33.88488791,182.08,181.94,1.7291]
[1734902879596,2.94,182.07,181.94,1.7291]
[1734902879794,2.94,182.06,182.0,2.7498]
[1734902880599,33.88488791,182.02,181.84,87.80370878]
[1734902880790,4.6375,182.01,181.86,3.3944]
[1734902881192,2.7503,181.98,181.93,2.7509]
[1734902881397,4.6375,182.01,181.86,3.3944]
[1734902881896,1.6975,182.01,181.88,33.88488791]
[1734902882091,2.94,182.03,181.91,33.88488791]
[1734902882996,2.7498,182.01,181.96,2.7504]
[1734902883901,2.7498,182.01,181.92,2.94]
[1734902884098,2.7498,182.01,181.97,2.7503]
[1734902884494,2.7496,182.02,181.98,2.7501]
[1734902885701,2.94,182.03,181.92,2.94]
[1734902885906,33.88488791,182.08,181.94,33.88488791]
[1734902886206,2.94,182.07,181.95,1.7084]
[1734902886398,2.94,182.07,181.95,3.4264]
[1734902886597,5.689,182.07,182.02,2.7496]
[1734902886799,2.94,182.07,182.02,2.7496]
[1734902887211,5.6889,182.07,182.02,2.7496]
[1734902887607,5.4929,182.23,181.97,36.82488791]
[1734902887811,7.8479,182.15,181.97,36.82488791]
[1734902888010,33.88488791,182.13,181.97,36.82488791]
[1734902888210,33.88488791,182.13,182.04,2.7492]
[1734902888507,2.7487,182.08,182.04,2.7492]
[1734902890008,2.94,182.1,182.0,2.94]
[1734902890214,36.82488791,182.1,181.97,2.94]
[1734902890714,2.7494,182.03,181.99,2.7499]
[1734902891010,33.88488791,182.07,181.97,2.94]
[1734902891211,2.7497,182.01,181.97,2.7503]
[1734902893609,2.7496,182.02,181.98,2.7502]
[1734902893812,2.94,182.04,181.93,2.94]
[1734902894214,2.94,182.04,182.0,2.7498]
[1734902895614,2.94,182.04,181.93,2.94]
[1734902896620,2.7498,182.01,181.93,2.94]
[1734902897119,2.7498,182.01,181.97,2.7502]
[1734902898021,36.82488791,182.04,181.92,1.6342]
[1734902898513,2.94,182.04,181.97,2.7503]
[1734902898710,5.0583,182.06,181.92,1.6342]
[1734902898922,5.6892,182.05,181.94,33.88488791]
[1734902899115,5.6892,182.05,182.01,2.7497]
[1734902899516,2.94,182.05,181.95,2.94]
[1734902899718,2.94,182.05,182.03,2.7494]
[1734902899921,1.7465,182.06,182.03,2.7494]
[1734902900222,1.7465,182.06,182.04,2.7492]
[1734902900520,1.7465,182.06,181.96,1.7391]
[1734902900521,2.94,182.11,182.0,36.82488791]
[1734902900717,2.94,182.12,182.01,1.6262]
[1734902901021,2.94,182.12,182.06,2.7489]
[1734902901320,1.7279,182.16,182.05,2.94]
[1734902902021,1.7279,182.16,182.06,33.88488791]
[1734902902419,2.94,182.19,182.14,2.7477]
[1734902902615,2.94,182.19,182.06,33.88488791]
[1734902903123,2.7473,182.18,182.13,2.7479]
[1734902903720,4.9655,182.23,182.1,2.94]
[1734902904017,6.2418,182.23,182.12,33.88488791]
[1734902904221,3.3018,182.23,182.12,33.88488791]
[1734902904415,3.3018,182.23,182.12,35.51908791]
[1734902904618,35.53098791,182.3,182.12,35.51908791]
[1734902904919,4.5954,182.29,182.15,33.88488791]
[1734902905118,4.5954,182.29,182.22,2.7466]
[1734902905820,1.6554,182.29,182.22,2.7466]
[1734902906020,1.6554,182.29,182.18,33.88488791]
[1734902906228,2.94,182.35,182.21,33.88488791]
[1734902906428,4.5954,182.35,182.22,2.94]
[1734902906624,2.745,182.33,182.25,2.746]
[1734902906930,4.5954,182.35,182.22,4.5508]
[1734902908429,2.7449,182.33,182.27,2.7457]
[1734902909222,2.7449,182.33,182.28,2.7456]
[1734902910022,2.7448,182.34,182.28,2.7456]
[1734902910223,1.6554,182.35,182.27,2.94]
[1734902910924,2.7444,182.37,182.27,2.94]
[1734902911331,2.7445,182.36,182.3,2.7454]
[1734902911932,2.7445,182.36,182.31,2.7452]
[1734902913427,2.7445,182.36,182.24,33.88488791]
[1734902913631,2.94,182.38,182.24,33.88488791]
[1734902913822,33.88488791,182.35,182.22,1.6108]
[1734902914124,2.94,182.38,182.2,2.7467]
[1734902914125,33.88488791,182.32,182.2,2.7467]
[1734902914329,6.222,182.31,182.18,36.82488791]
[1734902914728,6.222,182.31,182.18,2.94]
[1734902914926,2.7463,182.24,182.18,2.94]
[1734902915434,2.7463,182.24,182.17,1.7059]
[1734902916428,2.7464,182.23,182.17,4.4531]
[1734902918032,2.7463,182.24,182.18,2.7471]
[1734902918228,2.7463,182.24,182.17,1.7059]
[1734902918435,2.94,182.26,182.17,1.7059]
[1734902919134,2.7461,182.25,182.19,2.7469]
[1734902919531,2.7461,182.25,182.17,1.7059]
[1734902919731,2.7461,182.25,182.2,2.7468]
[1734902920432,2.7459,182.27,182.21,2.7467]
[1734902922130,2.746,182.26,182.17,1.7059]
[1734902922335,2.94,182.29,182.19,2.7469]
[1734902922630,2.94,182.29,182.16,110.46342103]
[1734902922839,33.88488791,182.26,182.16,113.21082103]
[1734902923138,1.7102,182.25,182.16,113.21082103]
[1734902923430,2.94,182.24,182.16,110.46342103]
[1734902923829,2.7468,182.21,182.16,113.21092103]
[1734902924136,2.94,182.24,182.16,110.46342103]
[1734902925532,2.7466,182.22,182.18,2.7471]
[1734902929036,33.88488791,182.29,182.16,110.46342103]
[1734902929238,2.94,182.28,182.16,110.46342103]
[1734902929430,2.7459,182.27,182.2,2.7468]
[1734902929636,1.7375,182.3,182.21,2.94]
[1734902929830,1.6085,182.31,182.21,36.82488791]
[1734902930035,4.3538,182.31,182.26,2.7459]
[1734902930337,2.7453,182.31,182.21,23.76515252]
[1734902930532,2.7453,182.31,182.24,2.7463]
[1734902930733,2.7453,182.31,182.21,23.76515252]
[1734902931130,2.7453,182.31,182.26,2.7458]
[1734902931335,20.82515252,182.37,182.21,23.76515252]
[1734902931533,2.7451,182.32,182.22,3.2926]
[1734902931831,2.7451,182.32,182.27,2.7457]
[1734902932934,2.7451,182.32,182.28,2.7456]
[1734902934138,2.94,182.37,182.26,2.94]
[1734902935033,33.83490054,182.36,182.22,3.2926]
[1734902935234,33.83490054,182.33,182.17,1.6011]
[1734902935438,33.83490054,182.3,182.17,4.5411]
[1734902935741,1.7153,182.29,182.18,2.747]
[1734902936433,2.7473,182.18,182.1,38.48730054]
[1734902936638,2.94,182.23,182.1,38.48730054]
[1734902937442,2.94,182.23,182.15,2.7476]
[1734902937641,36.77490054,182.27,182.15,2.94]
[1734902939241,2.7461,182.25,182.18,2.7471]
[1734902939441,36.77490054,182.27,182.15,2.94]
[1734902940441,36.77490054,182.27,182.19,2.7469]
[1734902940442,2.7463,182.24,182.19,2.7469]
[1734902942648,2.94,182.27,182.16,33.83490054]
[1734902943344,2.94,182.27,182.16,35.57850054]
[1734902943546,1.7153,182.29,182.16,35.57850054]
[1734902943740,1.7153,182.29,182.19,33.83490054]
[1734902943941,1.7153,182.29,182.27,2.7458]
[1734902944242,3.2434,182.32,182.2,4.6517]
[1734902945237,2.7455,182.29,182.25,2.746]
[1734902945548,3.2434,182.32,182.25,2.746]
[1734902945738,2.7454,182.3,182.26,2.746]
[1734902946838,3.2434,182.32,182.21,2.94]
[1734902947549,2.7459,182.27,182.23,2.7463]
[1734902949347,2.7459,182.27,182.2,4.6517]
[1734902949348,3.2434,182.32,182.2,4.6517]
[1734902950548,2.7456,182.29,182.25,2.7461]
[1734902950749,3.2434,182.32,182.2,4.6517]
[1734902951151,2.7461,182.26,182.22,2.7464]
[1734902951350,3.2434,182.32,182.2,4.6517]
[1734902951945,2.7459,182.27,182.23,2.7464]
[1734902952441,3.2434,182.32,182.2,4.6517]
[1734902952749,3.2434,182.32,182.2,25.48644128]
[1734902953141,2.7454,182.3,182.23,2.7463]
[1734902953344,2.7454,182.3,182.2,25.48644128]
[1734902953741,5.9885,182.32,182.29,2.7455]
[1734902954041,3.2434,182.32,182.2,25.48644128]
[1734902954243,2.7453,182.31,182.28,2.7456]
[1734902955449,2.7453,182.31,182.2,25.48644128]
[1734902955653,2.7454,182.3,182.27,2.7458]
[1734902956253,3.2434,182.32,182.2,25.48644128]
[1734902956450,2.7459,182.27,182.2,4.6517]
[1734902957455,2.7459,182.27,182.23,2.7463]
[1734902957752,3.2434,182.32,182.2,4.6517]
[1734902957954,2.7457,182.28,182.25,2.7461]
[1734902958454,2.7455,182.29,182.2,4.6517]
[1734902958650,6.1834,182.32,182.2,4.6517]
[1734902959152,2.7454,182.3,182.26,2.7459]
[1734902959448,6.1834,182.32,182.2,4.6317]
[1734902959652,2.7457,182.28,182.2,4.6317]
[1734902960455,2.7457,182.28,182.24,2.7462]
[1734902961658,2.7459,182.27,182.23,2.7464]
[1734902961956,6.1834,182.32,182.2,4.6317]
[1734902962258,2.7462,182.25,182.21,2.7466]
[1734902964056,2.7462,182.25,182.22,2.7466]
[1734902965055,2.7459,182.27,182.23,2.7463]
[1734902967658,2.7459,182.27,182.24,2.7463]
[1734902967858,2.7459,182.27,182.2,4.6317]
[1734902969457,2.7459,182.27,182.23,2.7463]
[1734902970361,2.7459,182.27,182.2,4.6517]
[1734902970661,6.1834,182.32,182.2,4.6517]